Cogmind - Beta 13 @@@ ROGUE MODE // 2024.07.16 @ 04:30:43 Player: EYE-VY Result: Destroyed by S-43 Plague with Heavy Machine Gun Performance ------------- Evolutions (7) 3500 Regions Visited (13) 2600 Robots Destroyed (109) 545 Value Destroyed (5666) 5666 Prototype IDs (7) 140 Alien Tech Used (0) 0 Bonus (1746) 1746 TOTAL SCORE: 14197 Bonus ------- High Alert Combat Kills 17 Follower Combat Kills 1230 Network Hubs Disabled 200 Met Imprinter 300 Was Imprinted 300 Friendly Fire -301 Cogmind --------- Core Integrity 0/1300 Matter 107/300 Energy 93/100 System Corruption 32% Temperature Cool (0) Movement Core (50) Location -3/Research Parts ------- > --- POWER (2) -------- (None) > --- PROPULSION (6) --- (None) > --- UTILITY (9) ------ Improved Signal Interpreter Core Analyzer Improved Transmission Jammer > --- WEAPON (4) ------- Nanosword > --- INVENTORY (5) ---- Advanced Weapon Cycler Advanced Shield Generator Linear Accelerator Peak State ------------ > --- POWER ------------ Light Antimatter Reactor Light Particle Reactor > --- PROPULSION ------- Flexi-carbon Leg Flexi-carbon Leg Flexi-carbon Leg Flexi-carbon Leg Biometal Leg Biometal Leg > --- UTILITY ---------- Advanced Heat Sink Large Storage Unit Enhanced Optical Array Improved Signal Interpreter 0b10 Decoder Chip [Generic] Improved Targeting Computer Core Analyzer Advanced Weapon Cycler Improved Medium Armor Plating > --- WEAPON ----------- Gamma Rifle Plasma Rifle KE Penetrator Nanosword > --- INVENTORY -------- Medium Treads Medium Treads Medium Treads Advanced Heat Sink Heavy Servo Lattice Advanced Shield Generator Gamma Rifle Coil Gun Heavy Machine Gun Railgun Hypervelocity Railgun Hardcell Cannon Hardcell Cannon Linear Accelerator Advanced Remote Datajack [Rating: 125] Favorites ----------- Power Improved Deuterium Engine Engine Improved Deuterium Engine Power Core Micro Fission Core Reactor Particle Reactor Propulsion Carbon-fiber Leg Treads Medium Treads Leg Carbon-fiber Leg Wheel Wheel Hover Unit Improved Antigrav System Utility Large Storage Unit Device Improved Cooling System Storage Large Storage Unit Processor Improved Signal Interpreter Hackware Makeshift Hacking Suite Protection Improved Medium Armor Plating Weapon Particle Cannon Energy Gun Pulse Rifle Energy Cannon Particle Cannon Ballistic Gun Assault Rifle Ballistic Cannon Magnetic Acceleration Cannon Launcher Smartbomb Launcher Special Weapon RU-N14's Throwing Claymores Slashing Weapon Chainsword Build | -11 -10 -9 -9 -7 -6 -6 -5 -5 -5 -5 -5 -4 -3 ------- Run | Yrd Mat Mat Min Zio Pro Fac Fac Ext Cet Arc Hub Fac Res Slots Evolved 14 | . . 2 . . . 6 2 . . . . 2 2 Power 1 | . . . . . . 1 . . . . . . . Propulsion 4 | . . 1 . . . 1 1 . . . . . 1 Utility 7 | . . 1 . . . 3 1 . . . . 1 1 Weapon 2 | . . . . . . 1 . . . . . 1 . Parts Attached 222 | 5 12 10 . 6 13 29 22 18 7 6 2 33 59 Power 29 | 1 2 2 . . 2 3 3 3 1 1 . 3 8 Engine 10 | 1 . 1 . . 2 2 . 2 . . . 2 . Core 8 | . 2 1 . . . 1 3 1 . . . . . Reactor 11 | . . . . . . . . . 1 1 . 1 8 Propulsion 63 | 2 2 4 . . 3 8 9 8 2 . 2 6 17 Treads 5 | . . . . . . . . . . . . . 5 Leg 54 | 2 2 4 . . 3 8 7 8 2 . 2 6 10 Wheel 2 | . . . . . . . 2 . . . . . . Hover 2 | . . . . . . . . . . . . . 2 Flight . | . . . . . . . . . . . . . . Utility 58 | 1 5 2 . 2 . 9 5 2 3 2 . 13 14 Device 25 | . 2 1 . . . 4 4 . 1 . . 6 7 Storage 5 | 1 2 1 . . . . . . . . . 1 . Processor 7 | . 1 . . 2 . 2 . 1 . . . 1 . Hackware 2 | . . . . . . 1 . . . . . . 1 Protection 19 | . . . . . . 2 1 1 2 2 . 5 6 Artifact . | . . . . . . . . . . . . . . Weapon 72 | 1 3 2 . 4 8 9 5 5 1 3 . 11 20 Energy Gun 15 | . . . . . 1 3 2 1 . . . 3 5 Energy Cannon 8 | . . 1 . . 1 2 2 1 . . . 1 . Ballistic Gun 28 | 1 3 1 . 3 3 2 1 . . 1 . 6 7 Ballistic Cannon 10 | . . . . . . . . 3 1 2 . 1 3 Launcher 1 | . . . . . . . . . . . . . 1 Special Weapon 4 | . . . . 1 3 . . . . . . . . Impact Weapon . | . . . . . . . . . . . . . . Slashing Weapon 6 | . . . . . . 2 . . . . . . 4 Piercing Weapon . | . . . . . . . . . . . . . . Special Melee Weapon . | . . . . . . . . . . . . . . Unidentified Prototypes 7 | . . . . 1 . 1 . . 1 1 . 2 1 Parts Lost 90 | . . . . . 3 . 10 7 1 1 . 26 42 Power 15 | . . . . . . . 2 1 . . . 4 8 Propulsion 29 | . . . . . 2 . 4 2 1 . . 8 12 Utility 18 | . . . . . . . 1 2 . . . 5 10 Weapon 28 | . . . . . 1 . 3 2 . 1 . 9 12 Highest Loss Streak 25 | . . . . . 2 . 4 6 1 1 . 14 25 To Critical Strikes 1 | . . . . . . . . . . . . . 1 Average Slot Usage (%) 93 | . 98 99 . 100 92 96 94 98 99 100 100 86 74 Engine 6 | . 10 5 . 11 11 9 5 5 5 5 5 3 . Core 1 | . 3 5 . . . . 4 4 1 . . . . Reactor 1 | . . . . . . . . . 3 5 5 4 4 Leg 26 | . 28 33 . 33 31 26 24 26 28 29 29 21 15 Device 5 | . 6 11 . . . 10 9 4 3 5 5 6 5 Storage 7 | . 14 11 . 11 11 6 5 5 5 5 5 3 3 Processor 18 | . 7 11 . 21 22 20 17 21 23 23 23 21 21 Hackware 1 | . . . . . . 1 5 5 1 . . . 1 Protection 1 | . . . . . . . . 1 5 5 5 4 2 Energy Gun 3 | . . . . . 2 9 6 4 . . . 2 5 Energy Cannon 4 | . . 10 . 11 2 2 4 4 5 5 5 3 . Ballistic Gun 8 | . 27 11 . 11 11 3 3 3 . 1 5 6 4 Ballistic Cannon 1 | . . . . . . . . 1 10 9 5 4 . Naked Turns . | . . . . . . . . . . . . . . Heaviest Build 107 | 9 19 35 35 35 42 60 68 74 87 88 87 100 107 Greatest Support 136 | 20 26 45 45 45 45 76 91 90 101 101 111 114 136 Greatest Overweight (x) 11 | 2 . . . . 1 . 5 5 1 . . 6 11 Average Overweight (x) . | . . . . . . . . . . . . . . Largest Inventory Capacity 15 | 8 10 15 15 15 15 15 15 15 15 15 15 15 15 Average Capacity 14 | 7 9 14 15 15 15 15 15 15 15 15 15 11 14 Most Carried 15 | 5 10 15 15 15 15 15 15 15 15 15 15 15 15 Average Carried 12 | 2 8 12 15 14 14 13 14 14 14 14 14 10 9 Final Capacity 15 | 8 10 15 15 15 15 15 15 15 15 15 15 15 5 Final Carried 15 | 5 10 15 15 15 13 15 13 15 15 15 15 6 3 Class Distribution -------------------- 40% | Mutant 26% | Scavenger-Gunner 7% | Scavenger-Mutant 6% | Skirmisher 4% | Scavenger-Tank 4% | Tank 3% | Assassin Dominant Class ---------------- Mutant | -10/Materials Scavenger-Mutant | -9/Materials Scavenger-Mutant | -9/Mines Mutant | -7/Zion Mutant | -6/Proximity Caves Assassin | -6/Factory Skirmisher | -5/Factory Scavenger-Gunner | -5/Extension Scavenger-Gunner | -5/Cetus Scavenger-Gunner | -5/Archives Scavenger-Gunner | -5/Hub_04(d) Scavenger-Gunner | -4/Factory Scavenger-Gunner | -3/Research Resources | -11 -10 -9 -9 -7 -6 -6 -5 -5 -5 -5 -5 -4 -3 ----------- Run | Yrd Mat Mat Min Zio Pro Fac Fac Ext Cet Arc Hub Fac Res Matter Collected 3989 | 250 146 272 . 60 138 124 491 276 188 184 89 600 1171 Remotely . | . . . . . . . . . . . . . . Salvage Created 5018 | . 152 657 . . 343 160 540 345 114 125 35 716 1831 Parts 254 | . 12 42 . . 17 6 25 16 5 8 4 33 86 Haulers Intercepted . | . . . . . . . . . . . . . . Recyclers Shooed 1 | . . 1 . . . . . . . . . . . Parts Field Recycled . | . . . . . . . . . . . . . . Retrieved Matter . | . . . . . . . . . . . . . . Parts Self-Destructed 27 | . . . . . 27 . . . . . . . . Prevented 3 | . . . . . 3 . . . . . . . . Kills | -11 -10 -9 -9 -7 -6 -6 -5 -5 -5 -5 -5 -4 -3 ------- Run | Yrd Mat Mat Min Zio Pro Fac Fac Ext Cet Arc Hub Fac Res Combat Hostiles Destroyed 89 | . 2 17 . . 8 3 10 5 3 2 . 11 28 Melee 4 | . . . . . . . . . . . . . 4 Guns 43 | . 2 7 . . 2 . 8 1 . . . 6 17 Cannons 30 | . . 9 . . 1 2 2 4 3 2 . 4 3 AOE 7 | . . . . . 5 . . . . . . . 2 Classes Destroyed 15 | . 3 3 . . 1 2 2 . . . . 1 3 Builder 2 | . . . . . . . . . . . . . 2 Tunneler 1 | . 1 . . . . . . . . . . . . Mechanic 2 | . . . . . . . . . . . . 1 1 Operator 5 | . . 1 . . . . 1 . . . 1 2 . Watcher 9 | . 2 2 . . . . 1 1 1 . 1 1 . Swarmer 20 | . . 7 . . 3 . 4 . . . . . 6 Grunt 24 | . 2 6 . . 4 . 1 4 . . . 1 6 Brawler 2 | . . . . . . . . . . . . . 2 Duelist 1 | . . . . . 1 . . . . . . . . Sentry 11 | . . 4 . . . 1 1 1 . 2 . 1 1 Specialist 3 | . . . . . . 1 . . . . . . 2 Hunter 9 | . . . . . . . 1 . . . . 4 4 Programmer 14 | . . . . . . 1 2 . . . . 5 6 Heavy 1 | . . . . . . . . . . . . . 1 Behemoth 1 | . . . . . . . 1 . . . . . . Cetus Guard 3 | . . . . . . . . . 3 . . . . Thug 1 | . . . . . 1 . . . . . . . . Best Kill Streak 6 | . 2 5 . . 3 1 6 2 3 2 1 3 4 Combat Bots Only 6 | . 2 5 . . 3 1 6 2 3 2 . 3 4 Max Kills in Single Turn 3 | . 2 2 . . 3 1 1 1 1 1 1 1 2 Gunslinging . | . . . . . . . . . . . . . . Exploded 3 | . . . . . 3 . . . . . . . 1 Melee 1 | . . . . . . . . . . . . . 1 Uniques/NPCs Destroyed . | . . . . . . . . . . . . . . Combat | -11 -10 -9 -9 -7 -6 -6 -5 -5 -5 -5 -5 -4 -3 -------- Run | Yrd Mat Mat Min Zio Pro Fac Fac Ext Cet Arc Hub Fac Res Hostile Shots Fired 1444 | . 7 77 . . 38 42 151 79 12 12 . 496 530 Missed 467 | . 2 25 . . 7 14 43 35 2 1 . 175 163 Damage Taken 17931 | . 90 628 . . 647 601 1798 1075 284 309 100 5281 7118 Core 2778 | . . 103 . . 91 81 245 174 . 24 . 756 1304 Absorbed by Shields 501 | . . . . . . . 157 25 . . . 319 . Regen/Repaired (Parts) 280 | . . . . 280 . . . . . . . . . Core Remaining (%) 71 | 100 100 . . . 51 90 . . . . 55 34 . Volleys Fired 345 | . 11 44 . . 19 11 54 20 15 10 5 66 90 Largest 4 | . 2 2 . . 2 3 3 3 3 3 3 4 4 Hottest 272 | . 40 91 . . 101 198 216 216 196 200 178 272 248 Shots Fired 830 | . 22 88 . . 28 28 127 54 28 26 13 176 240 Gun 544 | . 22 44 . . 18 21 92 31 . . 4 108 204 Cannon 274 | . . 44 . . 3 7 35 23 28 26 9 68 31 Launcher 5 | . . . . . . . . . . . . . 5 Special 7 | . . . . . 7 . . . . . . . . Kinetic 423 | . 22 44 . . 12 8 26 18 19 20 8 115 131 Thermal 291 | . . 44 . . 9 18 74 20 9 6 5 51 55 Explosive 12 | . . . . . 7 . . . . . . . 5 Electromagnetic 104 | . . . . . . 2 27 16 . . . 10 49 Robot Hit Streak 21 | . 3 21 . . 7 11 18 12 21 18 21 7 9 Robot Miss Streak 5 | . 3 3 . . 3 2 3 4 5 1 1 5 3 Penetration Max 1 | . . . . . . . . . . . . 1 1 Secondary Targets 3 | . 1 . . . . . 1 . . . . . 1 Max Gunslinging Chain 1 | . 1 . . . . . 1 . . . . . 1 Shots Hit Robots 528 | . 11 64 . . 15 21 91 31 17 21 7 91 159 Core Hits 221 | . 9 25 . . 11 6 27 13 8 9 2 33 78 Critical Kills 4 | . . . . . . . . . . . . 2 2 Critical Parts Destroyed 6 | . . 1 . . . . . . . . 1 1 3 Critical Strikes 26 | . . 1 . . 2 3 1 1 . 2 1 6 9 Burn 6 | . . . . . . 3 1 1 . . . . 1 Destroy 11 | . . 1 . . . . . . . . 1 3 6 Blast 4 | . . . . . . . . . . 2 . 2 . Corrupt 1 | . . . . . . . . . . . . 1 . Sever 4 | . . . . . 2 . . . . . . . 2 Melee Attacks 26 | . . . . . . 9 . . . . . . 17 Impact . | . . . . . . . . . . . . . . Slashing 26 | . . . . . . 9 . . . . . . 17 Piercing . | . . . . . . . . . . . . . . Sneak Attacks . | . . . . . . . . . . . . . . Combat Hostiles . | . . . . . . . . . . . . . . Follow-up Attacks . | . . . . . . . . . . . . . . Damage Inflicted 16788 | . 186 1213 . . 1976 433 2238 1049 568 659 237 2665 5564 Guns 7942 | . 186 470 . . 284 327 1326 471 . . 51 1495 3332 Cannons 5059 | . . 735 . . 42 106 835 429 568 659 161 1089 435 Explosions 2836 | . . . . . 1427 . 74 127 . . 25 . 1183 Melee 582 | . . . . . . . . . . . . . 582 Ramming 146 | . . 8 . . . . 3 22 . . . 81 32 Kinetic 6346 | . 186 470 . . 197 114 405 330 341 498 81 1573 2151 Thermal 5561 | . . 735 . . 129 285 1419 441 227 161 131 889 1144 Explosive 2374 | . . . . . 1427 . . . . . . . 947 Electromagnetic 1556 | . . . . . . 34 411 256 . . 25 122 708 Impact . | . . . . . . . . . . . . . . Slashing 805 | . . . . . 223 . . . . . . . 582 Piercing . | . . . . . . . . . . . . . . Highest Corruption 32 | . 4 . . . 2 2 3 3 3 3 3 16 32 Average Corruption 4 | . 3 . . . 2 1 2 3 3 3 3 4 10 Corruption Purged 1 | . . . . . . . . . . . . 1 . Corruption Blocked . | . . . . . . . . . . . . . . Effects 113 | . 2 . . . 8 9 6 15 4 3 4 27 35 Message Errors 21 | . 1 . . . 1 1 . 3 1 1 1 6 6 Matter Fused 27 | . . . . . 1 4 2 3 . 1 2 7 7 Heat Flow Errors 14 | . 1 . . . . 1 . 3 1 . . 2 6 Energy Discharges 13 | . . . . . 1 . 1 4 1 . 1 3 2 Parts Rejected 5 | . . . . . 1 . 1 1 . . . 1 1 Parts Fused 1 | . . . . . . 1 . . . . . . . Data Loss (minor) 20 | . . . . . 1 1 1 . . 1 . 7 9 Data Loss (major) 3 | . . . . . 3 . . . . . . . . Misfires 3 | . . . . . . 1 . 1 . . . . 1 Alerts 1 | . . . . . . . . . . . . . 1 Misdirections 2 | . . . . . . . . . . . . 1 1 Weapon Failures 3 | . . . . . . . 1 . 1 . . . 1 Overload Shots . | . . . . . . . . . . . . . . Overflow Damage 263 | . . 24 . . 18 . 30 . 6 . 36 72 77 Projectiles 168 | . . 24 . . . . 30 . 6 . 36 72 . Explosions 84 | . . . . . 18 . . . . . . . 66 Melee 11 | . . . . . . . . . . . . . 11 Knockbacks 13 | . . . . . . . . . . . . 9 4 Impact 2 | . . . . . . . . . . . . 1 1 Kinetic 10 | . . . . . . . . . . . . 7 3 Secondary 1 | . . . . . . . . . . . . 1 . Self-Inflicted Damage 291 | . . . . . . . . . . . 100 . 191 Shots 5 | . . . . . . . . . . . 1 . 4 Rammed 3 | . . . . . . . . . . . . 2 1 Targets Rammed 22 | . . 2 . . . . 1 1 . . . 15 3 Kicked 19 | . . 2 . . . . 1 1 . . . 13 2 Crushed . | . . . . . . . . . . . . . . Highest Temperature 619 | . 233 27 . . 321 245 268 217 619 302 48 515 521 Average Temperature 135 | . 83 11 . . 79 66 103 59 213 116 23 168 175 Received Heat Transfer 1576 | . 42 285 . . 384 42 126 195 54 9 . 268 171 Effects 25 | . . . . . 2 . . . 5 . . 9 9 Shutdowns 12 | . . . . . . . . . 3 . . 4 5 Energy Bleed 6 | . . . . . . . . . 1 . . 5 . Interference 2 | . . . . . 2 . . . . . . . . Short Circuit 1 | . . . . . . . . . . . . . 1 Damage (minor) 1 | . . . . . . . . . 1 . . . . Damage (major) 3 | . . . . . . . . . . . . . 3 Siege Activations . | . . . . . . . . . . . . . . Robots Corrupted 1 | . . . . . . . . . . . . . 1 Combat Hostiles 1 | . . . . . . . . . . . . . 1 Parts Fried 5 | . . . . . . . . 2 . . . . 3 Impact Corruptions . | . . . . . . . . . . . . . . Robots Melted 4 | . . 1 . . . 1 . . . . . 1 1 Combat Hostiles 4 | . . 1 . . . 1 . . . . . 1 1 Parts Melted 20 | . . 1 . . 1 5 5 1 . . . 5 2 Heat Transferred 9550 | . . 1221 . . 259 792 2397 700 350 250 200 1131 2250 Parts Sabotaged 3 | . . . . . . . . . . . . 3 . Parts Stolen . | . . . . . . . . . . . . . . Parts Stripped . | . . . . . . . . . . . . . . Power Chain Reactions 3 | . . . . . . . 1 1 . . . . 1 Alert | -11 -10 -9 -9 -7 -6 -6 -5 -5 -5 -5 -5 -4 -3 ------- Run | Yrd Mat Mat Min Zio Pro Fac Fac Ext Cet Arc Hub Fac Res Peak Influence 634 | . 62 154 40 . . 100 208 339 332 276 634 426 360 Initial 310 | . . . 40 . . 84 26 46 189 132 96 310 55 Average 118 | . 9 76 40 . . 45 58 185 277 234 175 284 112 Maximum Alert Level 2 | . . . . . . . 1 1 1 1 2 2 1 Low Security (%) 73 | 100 100 100 100 . . 100 98 58 13 27 59 6 77 Level 1 25 | . . . . . . . 1 41 86 72 38 91 22 Level 2 . | . . . . . . . . . . . 1 2 . Level 3 . | . . . . . . . . . . . . . . Level 4 . | . . . . . . . . . . . . . . Level 5 . | . . . . . . . . . . . . . . High Security . | . . . . . . . . . . . . . . Max Security . | . . . . . . . . . . . . . . Squads Dispatched 19 | . . . . . 1 2 2 1 . . 2 6 5 Investigation 4 | . . . . . . . . 1 . . 1 2 . Extermination 9 | . . . . . . 1 1 . . . 1 3 3 Reinforcement 5 | . . . . . . 1 1 . . . . 1 2 Assault 1 | . . . . . 1 . . . . . . . . Garrison . | . . . . . . . . . . . . . . Intercept . | . . . . . . . . . . . . . . Searches Triggered . | . . . . . . . . . . . . . . Construction Impeded 1 | . . . . . . . 1 . . . . . . Haulers Reinforced . | . . . . . . . . . . . . . . Active Scanning Responses . | . . . . . . . . . . . . . . Cargo Convoy Interrupts 1 | . . . . . . . . . . . . 1 . Stealth | -11 -10 -9 -9 -7 -6 -6 -5 -5 -5 -5 -5 -4 -3 --------- Run | Yrd Mat Mat Min Zio Pro Fac Fac Ext Cet Arc Hub Fac Res Distress Signals 4 | . . 2 . . . . 1 . . . 1 . . Communications Jammed . | . . . . . . . . . . . . . . Distress Signals . | . . . . . . . . . . . . . . Times Spotted 199 | . 6 28 . . 23 5 17 20 7 4 8 39 42 Peak Tracking Total 16 | . 2 5 . . 7 2 5 6 5 1 4 16 6 Tactical Retreats 10 | . . 1 . . 1 1 1 1 . . . . 5 Traps | -11 -10 -9 -9 -7 -6 -6 -5 -5 -5 -5 -5 -4 -3 ------- Run | Yrd Mat Mat Min Zio Pro Fac Fac Ext Cet Arc Hub Fac Res Traps Triggered 12 | . 4 1 . . . 2 . . . . 1 4 . Indirectly . | . . . . . . . . . . . . . . Trap Hack Attempts . | . . . . . . . . . . . . . . Triggered . | . . . . . . . . . . . . . . Disarmed . | . . . . . . . . . . . . . . Reprogrammed . | . . . . . . . . . . . . . . Reused . | . . . . . . . . . . . . . . Traps Extracted . | . . . . . . . . . . . . . . Installed . | . . . . . . . . . . . . . . Triggered . | . . . . . . . . . . . . . . Machines | -11 -10 -9 -9 -7 -6 -6 -5 -5 -5 -5 -5 -4 -3 ---------- Run | Yrd Mat Mat Min Zio Pro Fac Fac Ext Cet Arc Hub Fac Res Machines Disabled 24 | . . 1 . . 1 . . 2 3 3 13 1 . Max in Single Turn 12 | . . 1 . . 1 . . 1 1 1 12 1 . Garrison Access 1 | . . . . . . 1 . . . . . . . Network Hub 1 | . . . . . . . . . . . 1 . . Machines Repaired . | . . . . . . . . . . . . . . Machines Dismantled . | . . . . . . . . . . . . . . Machines Sabotaged . | . . . . . . . . . . . . . . Overloaded Fab Kills . | . . . . . . . . . . . . . . Hacking | -11 -10 -9 -9 -7 -6 -6 -5 -5 -5 -5 -5 -4 -3 --------- Run | Yrd Mat Mat Min Zio Pro Fac Fac Ext Cet Arc Hub Fac Res Machines Accessed 29 | . 8 7 . . . 2 2 3 3 1 . 2 1 Terminals 18 | . 6 7 . . . . . 2 3 . . . . Fabricators 1 | . . . . . . 1 . . . . . . . Repair Stations . | . . . . . . . . . . . . . . Recycling Units 8 | . 2 . . . . . 2 1 . . . 2 1 Scanalyzers . | . . . . . . . . . . . . . . Garrison Access 1 | . . . . . . 1 . . . . . . . Total Hacks 70 | . 20 21 . . . 3 7 4 6 3 . 3 3 Successful 39 | . 13 10 . . . 2 6 1 1 3 . 2 1 Failed 31 | . 7 11 . . . 1 1 3 5 . . 1 2 Catastrophic 8 | . 1 2 . . . . . 1 3 . . 1 . Database Lockouts . | . . . . . . . . . . . . . . Manual 72 | . 15 21 . . . 4 6 9 . . 11 5 1 Terminals 46 | . 16 21 . . . . . 3 6 . . . . Fabricators 2 | . . . . . . 2 . . . . . . . Repair Stations . | . . . . . . . . . . . . . . Recycling Units 18 | . 4 . . . . . 7 1 . . . 3 3 Scanalyzers . | . . . . . . . . . . . . . . Garrison Access 1 | . . . . . . 1 . . . . . . . Terminal Hacks 17 | . 7 6 . . . . . . 1 3 . . . Record 4 | . . . . . . . . . 1 3 . . . Robot Analysis 5 | . 2 3 . . . . . . . . . . . Unreport Threat 5 | . 2 3 . . . . . . . . . . . Locate Traps 2 | . 2 . . . . . . . . . . . . Zone Layout 1 | . 1 . . . . . . . . . . . . Fabricator Hacks 1 | . . . . . . 1 . . . . . . . Network Status 1 | . . . . . . 1 . . . . . . . Repair Station Hacks . | . . . . . . . . . . . . . . Recycling Unit Hacks 12 | . 2 . . . . . 6 1 . . . 2 1 Recycle Component 1 | . . . . . . . 1 . . . . . . Process 1 | . . . . . . . 1 . . . . . . Report Inventory 1 | . 1 . . . . . . . . . . . . Retrieve Matter 2 | . . . . . . . 2 . . . . . . Retrieve Components 7 | . 1 . . . . . 2 1 . . . 2 1 Scanalyzer . | . . . . . . . . . . . . . . Garrison Access Hacks 1 | . . . . . . 1 . . . . . . . Seal Access 1 | . . . . . . 1 . . . . . . . Unauthorized Hacks 8 | . 4 4 . . . . . . . . . . . Terminals 8 | . 4 4 . . . . . . . . . . . Botnet 6 | . 3 3 . . . . . . . . . . . Operators 2 | . 1 1 . . . . . . . . . . . Fabricators . | . . . . . . . . . . . . . . Repair Stations . | . . . . . . . . . . . . . . Recycling Units . | . . . . . . . . . . . . . . Scanalyzers . | . . . . . . . . . . . . . . Garrison Access . | . . . . . . . . . . . . . . Data Cores Recovered 4 | . . 1 . . . . 1 . . . 1 1 . Used . | . . . . . . . . . . . . . . Hacking Detections 21 | . 7 6 . . . . 2 2 3 . . 1 . Full Trace Events 2 | . . 1 . . . . . 1 . . . . . Feedback Events . | . . . . . . . . . . . . . . Feedback Blocked . | . . . . . . . . . . . . . . Robot Schematics Acquired . | . . . . . . . . . . . . . . Robots Built . | . . . . . . . . . . . . . . Authchips . | . . . . . . . . . . . . . . Time . | . . . . . . . . . . . . . . Total Robot Build Rating . | . . . . . . . . . . . . . . Part Schematics Acquired . | . . . . . . . . . . . . . . Parts Built . | . . . . . . . . . . . . . . Authchips . | . . . . . . . . . . . . . . Time . | . . . . . . . . . . . . . . Total Part Build Rating . | . . . . . . . . . . . . . . Parts Repaired . | . . . . . . . . . . . . . . Time . | . . . . . . . . . . . . . . Parts Recycled 1 | . . . . . . . 1 . . . . . . Recycled Matter 13 | . . . . . . . 13 . . . . . . Retrieved Matter 13 | . . . . . . . 13 . . . . . . Retrieved Components 15 | . 3 . . . . . 7 3 . . . 2 . Parts Scanalyzed . | . . . . . . . . . . . . . . Part Schematics Acquired . | . . . . . . . . . . . . . . Parts Damaged . | . . . . . . . . . . . . . . Bothacking | -11 -10 -9 -9 -7 -6 -6 -5 -5 -5 -5 -5 -4 -3 ------------ Run | Yrd Mat Mat Min Zio Pro Fac Fac Ext Cet Arc Hub Fac Res Used RIF Installer . | . . . . . . . . . . . . . . Robots Hacked . | . . . . . . . . . . . . . . Non-combat . | . . . . . . . . . . . . . . Combat . | . . . . . . . . . . . . . . Robot Hacks Applied . | . . . . . . . . . . . . . . Relay Couplers Released . | . . . . . . . . . . . . . . Fabnet Peak Effective % . | . . . . . . . . . . . . . . Robots Rewired 8 | . . . . . 2 . . 6 . . . . . Allies Hacked . | . . . . . . . . . . . . . . Hacks Repelled . | . . . . . . . . . . . . . . Allies | -11 -10 -9 -9 -7 -6 -6 -5 -5 -5 -5 -5 -4 -3 -------- Run | Yrd Mat Mat Min Zio Pro Fac Fac Ext Cet Arc Hub Fac Res Total Allies 19 | . . . . 8 2 . . 8 . . 1 . . Largest Group 8 | . . . . 8 8 . . 6 4 1 2 1 . Highest-Rated Group 321 | . . . . 270 270 . . 321 262 39 180 141 . Highest-Rated Ally 141 | . . . . 40 40 . . 96 96 39 141 141 . Zionite Dispatches 1 | . . . . . . . . . . . 1 . . Hero 1 | . . . . . . . . . . . 1 . . Total Orders . | . . . . . . . . . . . . . . Ally Attacks 210 | . . . . . 82 . . 69 38 7 14 . . Total Damage 5385 | . . . . . 1954 . . 1620 803 133 875 . . Kills 35 | . . . . . 14 . . 11 2 2 6 . . Allies Corrupted . | . . . . . . . . . . . . . . Allies Melted . | . . . . . . . . . . . . . . Intel | -11 -10 -9 -9 -7 -6 -6 -5 -5 -5 -5 -5 -4 -3 ------- Run | Yrd Mat Mat Min Zio Pro Fac Fac Ext Cet Arc Hub Fac Res Robot Analysis Total 5 | . 2 3 . . . . . . . . . . . Derelict Logs Recovered 3 | . . . . 1 2 . . . . . . . . Drone Launches . | . . . . . . . . . . . . . . Drone Recoveries . | . . . . . . . . . . . . . . Decoded 0b10 Intel 148 | . . . . . . 27 31 21 4 3 7 33 22 Traps 18 | . . . . . . 2 3 4 . . 1 5 3 Emergency Access 10 | . . . . . . 2 2 . . . 1 2 3 Items 81 | . . . . . . 13 20 11 . . 3 22 12 Machines 21 | . . . . . . 4 4 4 3 1 1 2 2 Patrols 6 | . . . . . . 2 1 1 . . . . 2 Guards 8 | . . . . . . 4 1 . . . 1 2 . Exits 4 | . . . . . . . . 1 1 2 . . . Zionite Intel Received 7 | . . . . . . 1 1 2 . . 2 1 . Main Access 1 | . . . . . . . . . . . . 1 . Emergency Access 1 | . . . . . . . . 1 . . . . . Component Stockpiles 2 | . . . . . . 1 . . . . 1 . . Unaware Analyses 1 | . . . . . . . . 1 . . . . . Active Garrisons 1 | . . . . . . . . . . . 1 . . Depthwide Sectors/0 1 | . . . . . . . 1 . . . . . . Exploration | -11 -10 -9 -9 -7 -6 -6 -5 -5 -5 -5 -5 -4 -3 ------------- Run | Yrd Mat Mat Min Zio Pro Fac Fac Ext Cet Arc Hub Fac Res Turns Passed 10897 | 64 981 886 5 1607 972 1166 1279 756 237 152 271 1206 1315 Spaces Moved 6900 | 43 701 580 5 1180 614 810 718 486 139 90 194 765 575 Core 114 | 10 . . . . . . . . . . . 1 103 Treads 13 | . . . . . . . . . . . . . 13 Legs 6533 | 33 701 580 5 1180 614 810 687 359 139 90 194 764 377 Wheels 158 | . . . . . . . 31 127 . . . . . Hover 82 | . . . . . . . . . . . . . 82 Flight . | . . . . . . . . . . . . . . Fastest Speed 50 | 50 120 120 120 120 120 120 110 110 120 120 120 108 50 Average Speed 124 | 121 120 120 120 120 127 122 134 119 122 120 120 118 142 Slowest Speed 600 | 150 120 120 120 120 190 125 196 330 190 120 120 350 600 Overloaded Moves . | . . . . . . . . . . . . . . Propulsion Burnouts . | . . . . . . . . . . . . . . Robots Hopped . | . . . . . . . . . . . . . . Cave-ins Triggered . | . . . . . . . . . . . . . . Exploration Rate (%) 44 | 4 81 54 5 91 67 20 17 63 67 89 21 23 15 Regions Visited 13 Branch Regions 7 Pre-discovered Areas 10 | . . . . 1 . . 9 . . . . . . Known Exits Taken 12 | . 1 1 1 1 1 1 1 1 1 1 1 1 . Unknown Exits Taken 1 | 1 . . . . . . . . . . . . . Scrap Searched 7 | . . . . 4 3 . . . . . . . . Spaces Dug 11 | . . . . . . 9 1 . . . . . 1 Terrain Destroyed 401 | . . . . . 55 9 11 16 6 4 174 55 71 Melee 10 | . . . . . . 9 . . . . . . 1 Projectile 101 | . . . . . 2 . 10 8 6 4 3 55 13 AOE 288 | . . . . . 53 . 1 8 . . 171 . 55 Terrain Rammed . | . . . . . . . . . . . . . . Walls Destroyed . | . . . . . . . . . . . . . . Machines Disabled . | . . . . . . . . . . . . . . Actions | -11 -10 -9 -9 -7 -6 -6 -5 -5 -5 -5 -5 -4 -3 --------- Run | Yrd Mat Mat Min Zio Pro Fac Fac Ext Cet Arc Hub Fac Res Total 8541 | 52 821 680 4 1374 780 951 924 618 183 112 224 938 880 Wait 782 | . 71 32 . 169 100 67 117 62 13 1 17 35 98 Move 6887 | 42 700 579 4 1179 613 809 717 485 138 89 193 764 575 Hop . | . . . . . . . . . . . . . . Pick Up 116 | 5 12 7 . 9 13 11 8 8 4 2 3 13 21 Fast Attach 75 | 5 5 1 . 1 1 2 9 7 1 1 . 13 29 Attach 60 | . . 2 . . 5 5 7 5 . 1 . 14 21 Detach 5 | . 1 . . . . . . . . . . . 4 Swap 87 | . 7 7 . 5 7 22 6 6 6 4 2 6 9 Drop 106 | . 14 6 . 11 11 13 5 8 6 4 4 11 13 Fire 345 | . 11 44 . . 19 11 54 20 15 10 5 66 90 Melee 26 | . . . . . . 9 . . . . . . 17 Ram 3 | . . . . . . . . . . . . 3 . Kick 19 | . . 2 . . . . 1 1 . . . 13 2 Crush 1 | . . . . . . . . . . . . . 1 Escape Stasis 2 | . . . . . . 2 . . . . . . . Rewire 27 | . . . . . 11 . . 16 . . . . . Trap . | . . . . . . . . . . . . . . Miscellaneous . | . . . . . . . . . . . . . . Route ------- -11/Scrapyard -10/Materials (discovered 4 exits: *Mat x3 / *Min) -9/Materials (discovered 2 exits: *Mat / *Min) -9/Mines -7/Zion -6/Proximity Caves -6/Factory -5/Factory -5/Extension (discovered 3 exits: *Fac x2 / *Cet) -5/Cetus -5/Archives (discovered 3 exits: *Fac / *Hub x2) -5/Hub_04(d) -4/Factory (discovered 4 exits: *Res x4) -3/Research History --------- Turn | Location | Event 8 | -11/Scrapyard | Discovered new exit (range 15) 65 | -11/Scrapyard | Entered Materials 264 | -10/Materials | Discovered new exit (range 16) 302 | -10/Materials | Build established: Mutant 419 | -10/Materials | Discovered new exit (range 6) 551 | -10/Materials | Identified exit to Materials 585 | -10/Materials | Discovered new exit (range 7) 591 | -10/Materials | Identified exit to Mines 762 | -10/Materials | Discovered exit to Materials (range 16) 1046 | -10/Materials | Entered another Materials area 1046 | -9/Materials | Evolved 2 slots: Propulsion x1, Utility x1 1250 | -9/Materials | Discovered new exit (range 15) 1316 | -9/Materials | Identified exit to Mines 1614 | -9/Materials | Discovered new exit (range 16) 1631 | -9/Materials | Identified exit to Materials 1786 | -9/Materials | Build established: Scavenger-Mutant 1932 | -9/Materials | Entered Mines 1933 | -9/Mines | A Derelict revealed a hidden shortcut to a safe place 1936 | -9/Mines | Identified exit to Zion 1937 | -9/Mines | Entered Zion 2059 | -7/Zion | Learned Factory repair station intel 2202 | -7/Zion | Learned 8 Factory zone layouts 2209 | -7/Zion | Learned location of Data Miner (-6) 2235 | -7/Zion | Found Prototype Special Weapon 2236 | -7/Zion | Identified RU-N14's Throwing Claymores 2339 | -7/Zion | Build established: Mutant 2396 | -7/Zion | Gained Derelict followers 2437 | -7/Zion | Given A8's code to call for help 2682 | -7/Zion | Found CR-A16's Pointy Stick 2752 | -7/Zion | Found RU-N14's Throwing Claymores 2855 | -7/Zion | Gained Derelict followers 2955 | -7/Zion | Imprinted 2957 | -7/Zion | Declared Zion's savior 3183 | -7/Zion | Visited the Megawrench Repair Shop 3183 | -7/Zion | Megawrench repaired 8 parts 3331 | -7/Zion | Discovered new exit (range 10) 3527 | -7/Zion | Identified exit to Proximity Caves 3544 | -7/Zion | Entered Proximity Caves 3544 | -6/Proximity Caves | Accompanied by 8 allies 3554 | -6/Proximity Caves | Learned 4 Factory zone layouts 3666 | -6/Proximity Caves | Attracted the attention of an 0b10 outpost 3707 | -6/Proximity Caves | Lost 3 allies 3862 | -6/Proximity Caves | Spotted B-75 Beast 3900 | -6/Proximity Caves | Allies destroyed B-75 Beast 4415 | -6/Proximity Caves | Learned location of 1 exit from Factory 4502 | -6/Proximity Caves | Discovered new exit (range 6) 4507 | -6/Proximity Caves | Identified exit to Factory 4516 | -6/Proximity Caves | Entered Factory 4516 | -6/Factory | Evolved 6 slots: Power x1, Propulsion x1, Utility x3, Weapon x1 4517 | -6/Factory | Identified exit to Factory 4519 | -6/Factory | Loaded intel: 6 repair station locations 5166 | -6/Factory | Retrieved Zion intel report: Component Stockpiles 5682 | -6/Factory | Entered another Factory area 5682 | -5/Factory | Evolved 2 slots: Propulsion x1, Utility x1 5994 | -5/Factory | Spotted B-75 Beast 6050 | -5/Factory | Build established: Skirmisher 6375 | -5/Factory | Destroyed B-75 Beast 6401 | -5/Factory | Lost 4 parts (2p1n1w) 6460 | -5/Factory | Retrieved Zion intel report: Depthwide Sectors/0 6590 | -5/Factory | Lost 4 parts (2n1u1w) 6943 | -5/Factory | Discovered new exit (range 15) 6959 | -5/Factory | Identified exit to Extension 6961 | -5/Factory | Entered Extension 7012 | -5/Extension | Disrupted transfer network 7243 | -5/Extension | Retrieved Zion intel report: Unaware Analyses 7319 | -5/Extension | Retrieved Zion intel report: Emergency Access 7406 | -5/Extension | Spotted B-75 Beast 7450 | -5/Extension | Enhanced Grunt warped into view, answering call for help 7450 | -5/Extension | Enhanced Grunt warped into view, answering call for help 7467 | -5/Extension | Build established: Scavenger-Gunner 7495 | -5/Extension | Spotted B-75 Beast 7522 | -5/Extension | Allies destroyed B-75 Beast 7532 | -5/Extension | Allies destroyed B-75 Beast 7539 | -5/Extension | Identified exit to Factory 7556 | -5/Extension | Lost 6 parts (1p2n1u2w) 7665 | -5/Extension | Discovered new exit (range 21) 7666 | -5/Extension | Discovered exit to Factory (range 20) 7697 | -5/Extension | Identified exit to Cetus 7717 | -5/Extension | Entered Cetus 7717 | -5/Cetus | Accompanied by 4 allies 7731 | -5/Cetus | Spotted Cetus Guard 7731 | -5/Cetus | Spotted Cetus Guard 7731 | -5/Cetus | Spotted Cetus Guard 7731 | -5/Cetus | Spotted Cetus Guard 7744 | -5/Cetus | Destroyed Cetus Guard 7755 | -5/Cetus | Allies destroyed Cetus Guard 7759 | -5/Cetus | Destroyed Cetus Guard 7773 | -5/Cetus | Destroyed Cetus Guard 7798 | -5/Cetus | Lost 3 allies 7925 | -5/Cetus | Identified exit to Archives 7954 | -5/Cetus | Entered Archives 7954 | -5/Archives | Accompanied by 1 ally 8013 | -5/Archives | Identified exit to Hub_04(d) 8038 | -5/Archives | Unable to access archive contents 8050 | -5/Archives | Unable to access archive contents 8055 | -5/Archives | Discovered exit to Hub_04(d) (range 16) 8066 | -5/Archives | Unable to access archive contents 8082 | -5/Archives | Unable to access archive contents 8106 | -5/Archives | Entered Hub_04(d) 8106 | -5/Hub_04(d) | Accompanied by 1 ally 8113 | -5/Hub_04(d) | Zion hero teleported in (1C-UTU) 8139 | -5/Hub_04(d) | Retrieved Zion intel report: Active Garrisons 8218 | -5/Hub_04(d) | Retrieved Zion intel report: Component Stockpiles 8273 | -5/Hub_04(d) | Discovered exit to Factory (range 9) 8372 | -5/Hub_04(d) | Network Hub disabled 8377 | -5/Hub_04(d) | Entered Factory 8377 | -4/Factory | Accompanied by 1 ally (1C-UTU) 8377 | -4/Factory | Evolved 2 slots: Utility x1, Weapon x1 8658 | -4/Factory | Found Prototype Protection 8679 | -4/Factory | Retrieved Zion intel report: Main Access 8679 | -4/Factory | Identified exit to Research 9094 | -4/Factory | Identified 1C-UTU's Buckler 9141 | -4/Factory | Lost 14 parts (2p3n4u5w) 9374 | -4/Factory | Lost 3 parts (1p1n1w) 9529 | -4/Factory | Cargo convoy interrupted 9531 | -4/Factory | Spotted Striker 9557 | -4/Factory | Core integrity fell below 50% 9560 | -4/Factory | System corruption reached 10% 9583 | -4/Factory | Entered Research 9583 | -3/Research | Evolved 2 slots: Propulsion x1, Utility x1 9605 | -3/Research | Lost 8 parts (1p3n1u3w) 10060 | -3/Research | Found Enh. Force Lance 10172 | -3/Research | System corruption reached 10% 10228 | -3/Research | Lost 3 parts (1p1u1w) 10318 | -3/Research | Found Heavy Servo Lattice 10321 | -3/Research | Found Prototype Slashing Weapon 10322 | -3/Research | Identified Nanosword 10677 | -3/Research | Lost 6 parts (1p3n1u1w) 10755 | -3/Research | Lost 5 parts (1p2n1u1w) 10815 | -3/Research | Core integrity fell below 50% 10861 | -3/Research | System corruption reached 30% 10867 | -3/Research | Core integrity fell below 20% 10897 | -3/Research | Lost 25 parts (5p7n6u7w) 10898 | -3/Research | Destroyed by S-43 Plague with Heavy Machine Gun Last Messages --------------- Penetrated by Slug. Smartbomb Launcher destroyed. Penetrated by Slug. Slug penetrates Reinforced Barrier. Myomer Leg destroyed. Heavy Servo Lattice destroyed. Destroyed Lgt. Antimatter Reactor. Penetrated by Slug. H-77 Assassin destroyed. The unstable cave ceiling collapses. P-80 Master suffers critical hit (Destroy). The unstable cave ceiling collapses. Hardcell Cannon destroyed. The unstable cave ceiling collapses. Adv. Heat Sink destroyed. Acquired 50 matter. System corrupted: Energy discharge (-13). Dropped Lrg. Storage Unit. The unstable cave ceiling collapses. System corrupted: Matter fused (-10). Map ----- +----------------------------------------------------+ | | | | | | | | | | | | | | | | | | | | | | | ?????????????????????????????????????????????????? | | ?????????????????########????????????????????????? | | ?????????????????# #????????????????????????? | | ?????????????????# [ #????????????????????????? | | ?????????????????# !#????????????????????????? | | ?????????????????# #????????????????????????? | | ?????????????????#] *#????????????????????????? | | ??????????????????? ?????????????????????????? | | ????????????????????#+#??????????????????????????? | | ????????????????????# #??????????????????????????? | | ????????????????????# #??????????????????????????? | | ?????????????######?# #??????????????????????????? | | ############?# # #??????????????????????????? | | #| ! #?# # ######?????????????????????? | | # #?# + @ #?????????????????????? | | # #?# # ####s#?????????????????????? | | # """ #?# # #??? #?????????????????????? | | + [|""" #?# ?# #??? #?????????????????????? | | # [ """ #?########/#### ###???????????????????? | | # #????# = # #???????????????????? | | # #????# # ########????????????? | | #####"#####????# + ??????????? | | #!!! #????????# # ###?????????????????? | | #!!! ########?# # #???????????????????? | | #!!! + =% ]#?# ## ##???????????????????? | | #^ ######=########### #????????????????????? | | # #???#"%%# # # #????????????????????? | | # #???##[#### # # #????????????????????? | | # *#????#%#% #! ###### #??????????? | | #######???##=[! " #??????????? | | #????????###"# [# % ###### ???????????? | | ????????# ! %!!# #+####??????????????????? | | ???#!!% ! # #??????????????????? | | #!! ! #% #??????????????????? | | """ "!! # #??????????????????? | | """ # #??????????????????? | | """ ?# ! ### #??????????????????? | | "?" ??######## #?# = #??????????????????? | | ??" ???????????# #?########??????????????????? | +----------------------------------------------------+ Best States ------------- Heat Dissipation 84 Energy Generation 39 Energy Capacity 530 Matter Stores 300 Matter Capacity 300 Sight Range 22 Robot Scan Range 15 Terrain Scan Density 10 Jamming Range 14 Armor Coverage 600 Weapon Cycling 25 Evasion (%) 55 Targeting Accuracy 6 Core Analysis 6 Recoil Reduction 2 Offensive Hacking 14 Item Schematics ----------------- None Robot Schematics ------------------ None Fabricated ------------ Nothing Alien Tech Used ----------------- None Achievements -------------- Help From High Places It Was An Accident, I Swear Challenges ------------ None Game ------ Seed CoreMakeshiftShearcannon Manual? 0 Play Time 03:04:30 Cumulative 61.8 hours Start 2024.06.29 @ 17:23:41 End 2024.07.16 @ 04:30:43 Sessions 3 Manual Loads 0 Difficulty Rogue Special Mode None Game No. 45 Rogue 45 Adventurer 0 Explorer 0 Win Type - Total 0 Types 0/0/0/0/0/0/0/0/0 Lore% 41 Gallery% 48 Achievement% 36 Wizard Run 0 Options --------- Layout 1 ASCII 0 Keyboard 0 Movement Arrows Keybinds 0 Fullscreen 2 Font 24/Smallcaps Map View 50x35 Zoom Use 0% Tactical HUD 0 Map Filters NONE Filters NONE Steam 1 RUN: 0a735b32-19d0-4238-8194-f82af014a590